[Event "December 12 Late 2023"]
[Site "https://www.chess.com"]
[Date "2023.12.12"]
[Round "3"]
[White "Miranda, Rafael"]
[Black "Munoz Sanchez, Miguel"]
[Result "1-0"]
[Board "95"]
[TimeControl "180+1"]
[WhiteFideId "130990"]
[BlackFideId "3600734"]
[WhiteElo "2551"]
[BlackElo "2345"]
[WhiteTeam "ARG"]
[BlackTeam "ECU"]
[WhiteClock "0:01:22"]
[BlackClock "0:00:42"]

1. e4 {[%clk 0:03:00]}  e6 {[%clk 0:02:58]} 2. d4 {[%clk 0:03:00]}  d5 {[%clk 0:02:58]} 3. Nd2 {[%clk 0:03:01]}  Nc6 {[%clk 0:02:56]} 4. Ngf3 {[%clk 0:02:59]}  Nf6 {[%clk 0:02:54]} 5. e5 {[%clk 0:02:58]}  Nd7 {[%clk 0:02:55]} 6. c3 {[%clk 0:02:58]}  f6 {[%clk 0:02:55]} 7. Bb5 {[%clk 0:02:59]}  Be7 {[%clk 0:02:38]} 8. O-O {[%clk 0:02:57]}  O-O {[%clk 0:02:37]} 9. Re1 {[%clk 0:02:54]}  fxe5 {[%clk 0:02:37]} 10. dxe5 {[%clk 0:02:54]}  a6 {[%clk 0:02:32]} 11. Bd3 {[%clk 0:02:48]}  Nc5 {[%clk 0:02:21]} 12. Bc2 {[%clk 0:02:48]}  a5 {[%clk 0:02:18]} 13. Nb3 {[%clk 0:02:48]}  Nxb3 {[%clk 0:02:15]} 14. axb3 {[%clk 0:02:48]}  Bd7 {[%clk 0:02:13]} 15. Qd3 {[%clk 0:02:36]}  g6 {[%clk 0:02:11]} 16. Ra4 {[%clk 0:02:36]}  Be8 {[%clk 0:01:59]} 17. h4 {[%clk 0:02:33]}  Bf7 {[%clk 0:01:32]} 18. Rg4 {[%clk 0:02:32]}  Kh8 {[%clk 0:01:29]} 19. Bh6 {[%clk 0:02:30]}  Rg8 {[%clk 0:01:29]} 20. Ng5 {[%clk 0:02:18]}  Qe8 {[%clk 0:01:23]} 21. Rf4 {[%clk 0:02:10]}  Nd8 {[%clk 0:01:21]} 22. Qf3 {[%clk 0:02:06]}  Bxg5 {[%clk 0:01:17]} 23. Bxg5 {[%clk 0:02:05]}  Rf8 {[%clk 0:01:18]} 24. Bf6+ {[%clk 0:02:04]}  Kg8 {[%clk 0:01:18]} 25. Qe3 {[%clk 0:01:49]}  g5 {[%clk 0:01:10]} 26. Rg4 {[%clk 0:01:42]}  Bg6 {[%clk 0:01:10]} 27. Rxg5 {[%clk 0:01:42]}  Rxf6 {[%clk 0:00:55]} 28. exf6 {[%clk 0:01:41]}  Kf7 {[%clk 0:00:56]} 29. Rxg6 {[%clk 0:01:23]}  hxg6 {[%clk 0:00:56]} 30. Bxg6+ {[%clk 0:01:24]}  Kxf6 {[%clk 0:00:42]} 31. Qg5+ {[%clk 0:01:22]} 1-0

[Event "December 12 Late 2023"]
[Site "https://www.chess.com"]
[Date "2023.12.12"]
[Round "3"]
[White "Keleberda, Tymur"]
[Black "Mazzilli, Piero"]
[Result "1-0"]
[Board "96"]
[TimeControl "180+1"]
[WhiteFideId "14174294"]
[BlackFideId "807087"]
[WhiteElo "2546"]
[BlackElo "2335"]
[WhiteTeam "CAN"]
[BlackTeam "ITA"]
[WhiteClock "0:01:29"]
[BlackClock "0:00:21"]

1. e4 {[%clk 0:03:00]}  c5 {[%clk 0:03:00]} 2. Nf3 {[%clk 0:03:00]}  d6 {[%clk 0:02:59]} 3. c3 {[%clk 0:02:59]}  Nf6 {[%clk 0:02:59]} 4. h3 {[%clk 0:02:59]}  g6 {[%clk 0:02:58]} 5. Bd3 {[%clk 0:03:00]}  Bg7 {[%clk 0:02:58]} 6. Bc2 {[%clk 0:03:00]}  O-O {[%clk 0:02:56]} 7. d4 {[%clk 0:03:01]}  b6 {[%clk 0:02:51]} 8. O-O {[%clk 0:03:00]}  Bb7 {[%clk 0:02:51]} 9. Qe2 {[%clk 0:02:57]}  cxd4 {[%clk 0:02:46]} 10. cxd4 {[%clk 0:02:57]}  Ba6 {[%clk 0:02:42]} 11. Bd3 {[%clk 0:02:57]}  Bxd3 {[%clk 0:02:42]} 12. Qxd3 {[%clk 0:02:58]}  d5 {[%clk 0:02:42]} 13. e5 {[%clk 0:02:53]}  Ne4 {[%clk 0:02:41]} 14. Bf4 {[%clk 0:02:53]}  Nc6 {[%clk 0:02:39]} 15. Nbd2 {[%clk 0:02:38]}  Nxd2 {[%clk 0:01:49]} 16. Qxd2 {[%clk 0:02:38]}  Rc8 {[%clk 0:01:47]} 17. Bh6 {[%clk 0:02:38]}  Qd7 {[%clk 0:01:40]} 18. Bxg7 {[%clk 0:02:38]}  Kxg7 {[%clk 0:01:40]} 19. b4 {[%clk 0:02:28]}  a5 {[%clk 0:01:17]} 20. b5 {[%clk 0:02:27]}  Na7 {[%clk 0:00:50]} 21. a4 {[%clk 0:02:27]}  Rc4 {[%clk 0:00:46]} 22. Rfe1 {[%clk 0:02:27]}  Qf5 {[%clk 0:00:42]} 23. Nh4 {[%clk 0:01:58]}  Qh5 {[%clk 0:00:34]} 24. g3 {[%clk 0:01:58]}  Rfc8 {[%clk 0:00:32]} 25. Rec1 {[%clk 0:01:40]}  e6 {[%clk 0:00:29]} 26. Rxc4 {[%clk 0:01:32]}  Rxc4 {[%clk 0:00:29]} 27. Qf4 {[%clk 0:01:29]}  Qf5 {[%clk 0:00:21]} 28. Nxf5+ {[%clk 0:01:29]} 1-0

[Event "December 12 Late 2023"]
[Site "https://www.chess.com"]
[Date "2023.12.12"]
[Round "3"]
[White "Shapiro, Viktor"]
[Black "Rose, Felix"]
[Result "0-1"]
[Board "97"]
[TimeControl "180+1"]
[WhiteFideId "4175700"]
[BlackFideId "5105722"]
[WhiteElo "2536"]
[BlackElo "2323"]
[WhiteTeam "RUS"]
[BlackTeam "MEX"]
[WhiteClock "0:00:11"]
[BlackClock "0:00:23"]

1. c4 {[%clk 0:03:00]}  e6 {[%clk 0:02:59]} 2. Nc3 {[%clk 0:03:00]}  d5 {[%clk 0:03:00]} 3. d4 {[%clk 0:03:00]}  Nf6 {[%clk 0:03:00]} 4. Nf3 {[%clk 0:03:01]}  Be7 {[%clk 0:03:01]} 5. Bg5 {[%clk 0:03:01]}  Nbd7 {[%clk 0:03:00]} 6. e3 {[%clk 0:02:59]}  h6 {[%clk 0:03:00]} 7. Bh4 {[%clk 0:02:59]}  O-O {[%clk 0:03:01]} 8. Qc2 {[%clk 0:02:57]}  c5 {[%clk 0:02:59]} 9. dxc5 {[%clk 0:02:56]}  Nxc5 {[%clk 0:02:58]} 10. Rd1 {[%clk 0:02:56]}  Qa5 {[%clk 0:02:51]} 11. cxd5 {[%clk 0:02:11]}  Nxd5 {[%clk 0:02:48]} 12. Rxd5 {[%clk 0:02:11]}  exd5 {[%clk 0:02:46]} 13. Bxe7 {[%clk 0:02:10]}  Re8 {[%clk 0:02:46]} 14. Bxc5 {[%clk 0:02:01]}  Qxc5 {[%clk 0:02:45]} 15. Be2 {[%clk 0:01:57]}  Bg4 {[%clk 0:02:43]} 16. Nd4 {[%clk 0:01:54]}  Bxe2 {[%clk 0:02:42]} 17. Qxe2 {[%clk 0:01:54]}  a6 {[%clk 0:02:42]} 18. O-O {[%clk 0:01:54]}  b5 {[%clk 0:02:42]} 19. Rd1 {[%clk 0:01:52]}  b4 {[%clk 0:02:40]} 20. Na4 {[%clk 0:01:51]}  Qc7 {[%clk 0:02:26]} 21. Qd2 {[%clk 0:01:47]}  a5 {[%clk 0:02:25]} 22. Rc1 {[%clk 0:01:38]}  Qe5 {[%clk 0:02:22]} 23. Nb6 {[%clk 0:01:34]}  Ra6 {[%clk 0:02:10]} 24. Rc6 {[%clk 0:01:26]}  Qe4 {[%clk 0:01:51]} 25. Qc1 {[%clk 0:01:05]}  h5 {[%clk 0:01:39]} 26. h3 {[%clk 0:01:04]}  h4 {[%clk 0:01:38]} 27. a3 {[%clk 0:01:00]}  g6 {[%clk 0:01:24]} 28. Qf1 {[%clk 0:00:53]}  Ra7 {[%clk 0:01:18]} 29. a4 {[%clk 0:00:48]}  Rb7 {[%clk 0:01:05]} 30. Nb5 {[%clk 0:00:23]}  d4 {[%clk 0:00:47]} 31. Nxd4 {[%clk 0:00:21]}  Rd8 {[%clk 0:00:39]} 32. Qc4 {[%clk 0:00:21]}  Qb1+ {[%clk 0:00:35]} 33. Kh2 {[%clk 0:00:20]}  Qxb2 {[%clk 0:00:35]} 34. Rxg6+ {[%clk 0:00:20]}  Kf8 {[%clk 0:00:32]} 35. Rf6 {[%clk 0:00:19]}  Qc3 {[%clk 0:00:26]} 36. Ne6+ {[%clk 0:00:15]}  Ke7 {[%clk 0:00:23]} 37. Qxh4 {[%clk 0:00:14]}  Qxf6 {[%clk 0:00:22]} 38. Qxf6+ {[%clk 0:00:14]}  Kxf6 {[%clk 0:00:22]} 39. Nxd8 {[%clk 0:00:11]}  Rxb6 {[%clk 0:00:23]} 0-1

[Event "December 12 Late 2023"]
[Site "https://www.chess.com"]
[Date "2023.12.12"]
[Round "3"]
[White "Asish Panda"]
[Black "Marcziter, Dmitrii"]
[Result "1-0"]
[Board "98"]
[TimeControl "180+1"]
[WhiteFideId "45012458"]
[BlackFideId "13900765"]
[WhiteElo "2536"]
[BlackElo "2319"]
[WhiteTeam "IND"]
[BlackTeam "GER"]
[WhiteClock "0:00:38"]
[BlackClock "0:00:00"]

1. e4 {[%clk 0:03:00]}  c5 {[%clk 0:02:58]} 2. Nf3 {[%clk 0:02:56]}  a6 {[%clk 0:02:57]} 3. c3 {[%clk 0:02:54]}  d5 {[%clk 0:02:56]} 4. exd5 {[%clk 0:02:53]}  Qxd5 {[%clk 0:02:56]} 5. d4 {[%clk 0:02:54]}  Nf6 {[%clk 0:02:56]} 6. Na3 {[%clk 0:02:53]}  cxd4 {[%clk 0:02:54]} 7. cxd4 {[%clk 0:02:50]}  Bg4 {[%clk 0:02:48]} 8. Nc4 {[%clk 0:02:49]}  e6 {[%clk 0:02:22]} 9. Be2 {[%clk 0:02:35]}  Bb4+ {[%clk 0:02:19]} 10. Bd2 {[%clk 0:02:35]}  Bxd2+ {[%clk 0:02:19]} 11. Qxd2 {[%clk 0:02:36]}  Bxf3 {[%clk 0:02:13]} 12. gxf3 {[%clk 0:02:33]}  Nbd7 {[%clk 0:02:10]} 13. Qb4 {[%clk 0:02:29]}  O-O-O {[%clk 0:00:50]} 14. Nd6+ {[%clk 0:02:16]}  Kb8 {[%clk 0:00:47]} 15. Bxa6 {[%clk 0:02:12]}  Nb6 {[%clk 0:00:22]} 16. Nxf7 {[%clk 0:01:47]}  Qxf3 {[%clk 0:00:16]} 17. Rf1 {[%clk 0:01:32]}  Qe4+ {[%clk 0:00:15]} 18. Be2 {[%clk 0:01:28]}  Rxd4 {[%clk 0:00:08]} 19. Qxb6 {[%clk 0:01:21]}  Nd5 {[%clk 0:00:07]} 20. Qd6+ {[%clk 0:01:17]}  Ka8 {[%clk 0:00:07]} 21. Qa3+ {[%clk 0:01:09]}  Kb8 {[%clk 0:00:06]} 22. Qf3 {[%clk 0:01:02]}  Qc2 {[%clk 0:00:04]} 23. Qg3+ {[%clk 0:00:57]}  Ka8 {[%clk 0:00:03]} 24. Qa3+ {[%clk 0:00:51]}  Kb8 {[%clk 0:00:04]} 25. Rg1 {[%clk 0:00:44]}  Qd2+ {[%clk 0:00:03]} 26. Kf1 {[%clk 0:00:44]}  Nf4 {[%clk 0:00:02]} 27. Qe3 {[%clk 0:00:39]}  Qd1+ {[%clk 0:00:02]} 28. Rxd1 {[%clk 0:00:37]}  Rxd1+ {[%clk 0:00:00]} 29. Bxd1 {[%clk 0:00:38]} 1-0

[Event "December 12 Late 2023"]
[Site "https://www.chess.com"]
[Date "2023.12.12"]
[Round "3"]
[White "Mejia, Cherry Ann"]
[Black "Silva, Kaua Marques"]
[Result "0-1"]
[Board "99"]
[TimeControl "180+1"]
[WhiteFideId "5206880"]
[BlackFideId "22701168"]
[WhiteElo "2278"]
[BlackElo "2535"]
[WhiteTeam "PHI"]
[BlackTeam "BRA"]
[WhiteClock "0:00:27"]
[BlackClock "0:01:13"]

1. e4 {[%clk 0:03:00]}  e6 {[%clk 0:02:58]} 2. d4 {[%clk 0:03:00]}  d5 {[%clk 0:02:59]} 3. Bd3 {[%clk 0:03:00]}  dxe4 {[%clk 0:02:58]} 4. Bxe4 {[%clk 0:03:01]}  Nf6 {[%clk 0:02:59]} 5. Bf3 {[%clk 0:03:01]}  c5 {[%clk 0:03:00]} 6. Be3 {[%clk 0:02:53]}  Nc6 {[%clk 0:02:57]} 7. Ne2 {[%clk 0:02:52]}  Nd5 {[%clk 0:02:48]} 8. Bxd5 {[%clk 0:02:36]}  Qxd5 {[%clk 0:02:45]} 9. O-O {[%clk 0:02:23]}  cxd4 {[%clk 0:02:39]} 10. Nxd4 {[%clk 0:02:23]}  Nxd4 {[%clk 0:02:37]} 11. Bxd4 {[%clk 0:02:21]}  Bd7 {[%clk 0:02:33]} 12. Nc3 {[%clk 0:02:20]}  Qf5 {[%clk 0:02:32]} 13. Qe2 {[%clk 0:02:03]}  Bc6 {[%clk 0:02:29]} 14. Rad1 {[%clk 0:02:00]}  Be7 {[%clk 0:02:26]} 15. Qe5 {[%clk 0:01:54]}  Qxe5 {[%clk 0:02:22]} 16. Bxe5 {[%clk 0:01:54]}  f6 {[%clk 0:02:21]} 17. Bd6 {[%clk 0:01:53]}  Rd8 {[%clk 0:02:12]} 18. Bxe7 {[%clk 0:01:50]}  Kxe7 {[%clk 0:02:13]} 19. f4 {[%clk 0:01:49]}  b5 {[%clk 0:02:05]} 20. a3 {[%clk 0:01:46]}  a5 {[%clk 0:02:04]} 21. Kf2 {[%clk 0:01:44]}  Rb8 {[%clk 0:02:01]} 22. b4 {[%clk 0:01:27]}  Ra8 {[%clk 0:01:56]} 23. Rfe1 {[%clk 0:01:23]}  Rhc8 {[%clk 0:01:55]} 24. Re3 {[%clk 0:01:20]}  Kf7 {[%clk 0:01:54]} 25. Rd6 {[%clk 0:01:19]}  axb4 {[%clk 0:01:51]} 26. axb4 {[%clk 0:01:18]}  Ra3 {[%clk 0:01:36]} 27. Rdxe6 {[%clk 0:01:15]}  Rxc3 {[%clk 0:01:32]} 28. Re7+ {[%clk 0:00:57]}  Kf8 {[%clk 0:01:22]} 29. Rxg7 {[%clk 0:00:33]}  Rxe3 {[%clk 0:01:13]} 30. Rxh7 {[%clk 0:00:27]}  Ree8 {[%clk 0:01:13]} 0-1

[Event "December 12 Late 2023"]
[Site "https://www.chess.com"]
[Date "2023.12.12"]
[Round "3"]
[White "Roberson, Peter T"]
[Black "Golubenko, Valentina"]
[Result "1-0"]
[Board "100"]
[TimeControl "180+1"]
[WhiteFideId "412384"]
[BlackFideId "4501993"]
[WhiteElo "2535"]
[BlackElo "2270"]
[WhiteTeam "ENG"]
[BlackTeam "CRO"]
[WhiteClock "0:00:04"]
[BlackClock "0:00:00"]

1. Nc3 {[%clk 0:03:00]}  d5 {[%clk 0:02:58]} 2. e4 {[%clk 0:02:59]}  d4 {[%clk 0:02:57]} 3. Nce2 {[%clk 0:02:59]}  c5 {[%clk 0:02:57]} 4. Ng3 {[%clk 0:03:00]}  Nc6 {[%clk 0:02:57]} 5. Bc4 {[%clk 0:03:00]}  e6 {[%clk 0:02:57]} 6. a4 {[%clk 0:02:59]}  Nf6 {[%clk 0:02:56]} 7. d3 {[%clk 0:02:59]}  Be7 {[%clk 0:02:56]} 8. f4 {[%clk 0:03:00]}  h5 {[%clk 0:02:53]} 9. e5 {[%clk 0:02:55]}  Ng4 {[%clk 0:02:46]} 10. Nxh5 {[%clk 0:02:39]}  Rxh5 {[%clk 0:02:26]} 11. Qxg4 {[%clk 0:02:39]}  g6 {[%clk 0:02:26]} 12. Nf3 {[%clk 0:02:36]}  Nb4 {[%clk 0:02:12]} 13. Bb3 {[%clk 0:02:31]}  c4 {[%clk 0:02:09]} 14. dxc4 {[%clk 0:02:30]}  d3 {[%clk 0:02:07]} 15. O-O {[%clk 0:02:20]}  Bc5+ {[%clk 0:01:30]} 16. Kh1 {[%clk 0:02:18]}  dxc2 {[%clk 0:01:31]} 17. Bd2 {[%clk 0:01:59]}  Nd3 {[%clk 0:01:29]} 18. Bxc2 {[%clk 0:01:40]}  Nf2+ {[%clk 0:01:19]} 19. Rxf2 {[%clk 0:01:40]}  Bxf2 {[%clk 0:01:19]} 20. Bxg6 {[%clk 0:01:41]}  Rh8 {[%clk 0:00:42]} 21. Be4 {[%clk 0:01:37]}  Qe7 {[%clk 0:00:21]} 22. a5 {[%clk 0:01:18]}  Bd7 {[%clk 0:00:19]} 23. Bxb7 {[%clk 0:01:07]}  Rb8 {[%clk 0:00:20]} 24. a6 {[%clk 0:01:05]}  Bc8 {[%clk 0:00:20]} 25. Qg7 {[%clk 0:00:56]}  Rf8 {[%clk 0:00:18]} 26. Bxc8 {[%clk 0:00:34]}  Rxc8 {[%clk 0:00:18]} 27. Ng5 {[%clk 0:00:35]}  Bb6 {[%clk 0:00:12]} 28. Nh7 {[%clk 0:00:32]}  Rxc4 {[%clk 0:00:11]} 29. Rd1 {[%clk 0:00:26]}  Rd4 {[%clk 0:00:10]} 30. g3 {[%clk 0:00:04]}  Ba5 {[%clk 0:00:09]} 31. Bxa5 {[%clk 0:00:03]}  Rxd1+ {[%clk 0:00:09]} 32. Kg2 {[%clk 0:00:03]}  Kd7 {[%clk 0:00:04]} 33. Nxf8+ {[%clk 0:00:03]}  Kc6 {[%clk 0:00:04]} 34. Bc3 {[%clk 0:00:03]}  Qc5 {[%clk 0:00:02]} 35. Qxf7 {[%clk 0:00:03]}  Rg1+ {[%clk 0:00:01]} 36. Kh3 {[%clk 0:00:03]}  Qd5 {[%clk 0:00:01]} 37. Qxe6+ {[%clk 0:00:03]}  Qxe6+ {[%clk 0:00:01]} 38. Nxe6 {[%clk 0:00:04]}  Kb5 {[%clk 0:00:01]} 39. Nc7+ {[%clk 0:00:04]}  Kc4 {[%clk 0:00:00]} 40. e6 {[%clk 0:00:04]} 1-0

[Event "December 12 Late 2023"]
[Site "https://www.chess.com"]
[Date "2023.12.12"]
[Round "3"]
[White "Clarke, Matthew"]
[Black "Rogov, Matfey"]
[Result "0-1"]
[Board "105"]
[TimeControl "180+1"]
[WhiteFideId "3227804"]
[BlackFideId "44191308"]
[WhiteElo "2227"]
[BlackElo "2525"]
[WhiteTeam "AUS"]
[BlackTeam "RUS"]
[WhiteClock "0:00:02"]
[BlackClock "0:00:42"]

1. d4 {[%clk 0:03:00]}  e6 {[%clk 0:02:59]} 2. c4 {[%clk 0:03:00]}  f5 {[%clk 0:02:59]} 3. g3 {[%clk 0:02:59]}  Nf6 {[%clk 0:02:59]} 4. Bg2 {[%clk 0:02:59]}  d5 {[%clk 0:03:00]} 5. Nf3 {[%clk 0:02:58]}  c6 {[%clk 0:03:00]} 6. O-O {[%clk 0:02:57]}  Bd6 {[%clk 0:03:00]} 7. b3 {[%clk 0:02:56]}  Qe7 {[%clk 0:03:00]} 8. Bf4 {[%clk 0:02:46]}  Bxf4 {[%clk 0:03:00]} 9. gxf4 {[%clk 0:02:46]}  O-O {[%clk 0:03:01]} 10. Ne5 {[%clk 0:02:40]}  Bd7 {[%clk 0:03:00]} 11. Nd2 {[%clk 0:02:29]}  Be8 {[%clk 0:03:00]} 12. e3 {[%clk 0:02:22]}  Bh5 {[%clk 0:03:00]} 13. Qc2 {[%clk 0:02:15]}  a5 {[%clk 0:02:58]} 14. a3 {[%clk 0:02:01]}  Nbd7 {[%clk 0:02:51]} 15. Ndf3 {[%clk 0:01:57]}  Bxf3 {[%clk 0:02:47]} 16. Bxf3 {[%clk 0:01:55]}  Kh8 {[%clk 0:02:32]} 17. Kh1 {[%clk 0:01:53]}  Nxe5 {[%clk 0:02:21]} 18. fxe5 {[%clk 0:01:51]}  Ne4 {[%clk 0:02:22]} 19. Bg2 {[%clk 0:01:30]}  Qh4 {[%clk 0:02:21]} 20. Kg1 {[%clk 0:01:06]}  Rac8 {[%clk 0:01:54]} 21. f3 {[%clk 0:01:05]}  Ng5 {[%clk 0:01:52]} 22. Qf2 {[%clk 0:00:36]}  Qh6 {[%clk 0:01:45]} 23. h4 {[%clk 0:00:30]}  Nf7 {[%clk 0:01:40]} 24. f4 {[%clk 0:00:21]}  Qg6 {[%clk 0:01:24]} 25. Kh1 {[%clk 0:00:21]}  Nh6 {[%clk 0:01:22]} 26. Bf3 {[%clk 0:00:21]}  Ng4 {[%clk 0:01:22]} 27. Bxg4 {[%clk 0:00:12]}  fxg4 {[%clk 0:01:23]} 28. Qg3 {[%clk 0:00:06]}  Qe4+ {[%clk 0:01:22]} 29. Kh2 {[%clk 0:00:06]}  h5 {[%clk 0:01:21]} 30. Rf2 {[%clk 0:00:05]}  a4 {[%clk 0:01:19]} 31. cxd5 {[%clk 0:00:03]}  cxd5 {[%clk 0:01:18]} 32. bxa4 {[%clk 0:00:03]}  Rc3 {[%clk 0:01:18]} 33. Re1 {[%clk 0:00:03]}  Rfc8 {[%clk 0:01:16]} 34. f5 {[%clk 0:00:03]}  Rc1 {[%clk 0:00:42]} 35. Rxc1 {[%clk 0:00:03]}  Rxc1 {[%clk 0:00:43]} 36. Qg2 {[%clk 0:00:03]}  g3+ {[%clk 0:00:41]} 37. Kxg3 {[%clk 0:00:03]}  Qg4+ {[%clk 0:00:42]} 38. Kh2 {[%clk 0:00:02]}  Qxh4+ {[%clk 0:00:42]} 0-1

[Event "December 12 Late 2023"]
[Site "https://www.chess.com"]
[Date "2023.12.12"]
[Round "3"]
[White "Lin, Bryan Enming"]
[Black "Tokat, Nehir"]
[Result "1-0"]
[Board "108"]
[TimeControl "180+1"]
[WhiteFideId "30987121"]
[BlackFideId "34557555"]
[WhiteElo "2520"]
[BlackElo "2183"]
[WhiteTeam "USA"]
[BlackTeam "TUR"]
[WhiteClock "0:01:04"]
[BlackClock "0:00:00"]

1. e4 {[%clk 0:03:00]}  c5 {[%clk 0:02:56]} 2. Nf3 {[%clk 0:03:00]}  Nc6 {[%clk 0:02:55]} 3. d4 {[%clk 0:02:59]}  cxd4 {[%clk 0:02:56]} 4. Nxd4 {[%clk 0:02:59]}  g6 {[%clk 0:02:57]} 5. c4 {[%clk 0:02:57]}  Nf6 {[%clk 0:02:55]} 6. Nc3 {[%clk 0:02:57]}  d6 {[%clk 0:02:47]} 7. f3 {[%clk 0:02:49]}  Nxd4 {[%clk 0:02:37]} 8. Qxd4 {[%clk 0:02:50]}  Bg7 {[%clk 0:02:36]} 9. Be3 {[%clk 0:02:46]}  a5 {[%clk 0:02:27]} 10. Be2 {[%clk 0:02:39]}  a4 {[%clk 0:02:24]} 11. Rd1 {[%clk 0:02:38]}  Qa5 {[%clk 0:02:23]} 12. O-O {[%clk 0:02:36]}  O-O {[%clk 0:02:23]} 13. Qd2 {[%clk 0:02:33]}  Be6 {[%clk 0:02:22]} 14. Nd5 {[%clk 0:02:31]}  Bxd5 {[%clk 0:02:15]} 15. exd5 {[%clk 0:02:25]}  Nd7 {[%clk 0:02:04]} 16. Kf2 {[%clk 0:02:21]}  Rfc8 {[%clk 0:02:03]} 17. h4 {[%clk 0:02:13]}  Ne5 {[%clk 0:01:50]} 18. Qxa5 {[%clk 0:02:11]}  Rxa5 {[%clk 0:01:49]} 19. Rc1 {[%clk 0:02:12]}  h5 {[%clk 0:01:45]} 20. Rfd1 {[%clk 0:02:04]}  Kf8 {[%clk 0:01:34]} 21. g4 {[%clk 0:01:55]}  Ke8 {[%clk 0:01:16]} 22. gxh5 {[%clk 0:01:52]}  gxh5 {[%clk 0:01:17]} 23. f4 {[%clk 0:01:52]}  Ng4+ {[%clk 0:01:15]} 24. Bxg4 {[%clk 0:01:51]}  hxg4 {[%clk 0:01:16]} 25. Bd4 {[%clk 0:01:45]}  Bh6 {[%clk 0:01:09]} 26. Kg3 {[%clk 0:01:37]}  f5 {[%clk 0:01:09]} 27. Re1 {[%clk 0:01:38]}  Kf7 {[%clk 0:01:07]} 28. Bc3 {[%clk 0:01:35]}  Rac5 {[%clk 0:01:04]} 29. b3 {[%clk 0:01:35]}  axb3 {[%clk 0:01:00]} 30. axb3 {[%clk 0:01:36]}  Ra8 {[%clk 0:01:00]} 31. Re6 {[%clk 0:01:35]}  Bf8 {[%clk 0:00:50]} 32. h5 {[%clk 0:01:34]}  Re8 {[%clk 0:00:14]} 33. h6 {[%clk 0:01:26]}  b5 {[%clk 0:00:14]} 34. Bd4 {[%clk 0:01:25]}  Rc7 {[%clk 0:00:12]} 35. Rh1 {[%clk 0:01:23]}  bxc4 {[%clk 0:00:10]} 36. b4 {[%clk 0:01:21]}  c3 {[%clk 0:00:10]} 37. b5 {[%clk 0:01:21]}  c2 {[%clk 0:00:10]} 38. Rc1 {[%clk 0:01:20]}  Rc4 {[%clk 0:00:09]} 39. Be3 {[%clk 0:01:16]}  Rc3 {[%clk 0:00:09]} 40. Kh4 {[%clk 0:01:15]}  Rb3 {[%clk 0:00:07]} 41. Rxc2 {[%clk 0:01:15]}  Rxb5 {[%clk 0:00:07]} 42. h7 {[%clk 0:01:09]}  Bg7 {[%clk 0:00:07]} 43. Kg5 {[%clk 0:01:04]}  Rxd5 {[%clk 0:00:07]} 44. Rg6 {[%clk 0:01:04]}  Rg8 {[%clk 0:00:06]} 45. hxg8=Q+ {[%clk 0:01:01]}  Kxg8 {[%clk 0:00:06]} 46. Rc7 {[%clk 0:01:00]}  Kf7 {[%clk 0:00:06]} 47. Rxe7+ {[%clk 0:01:00]}  Kxe7 {[%clk 0:00:07]} 48. Rxg7+ {[%clk 0:01:01]}  Ke6 {[%clk 0:00:07]} 49. Rg6+ {[%clk 0:01:01]}  Kd7 {[%clk 0:00:08]} 50. Rf6 {[%clk 0:01:01]}  Rd3 {[%clk 0:00:08]} 51. Ba7 {[%clk 0:01:00]}  g3 {[%clk 0:00:08]} 52. Kxf5 {[%clk 0:01:00]}  g2 {[%clk 0:00:08]} 53. Rg6 {[%clk 0:01:01]}  Ra3 {[%clk 0:00:07]} 54. Bf2 {[%clk 0:01:00]}  Ra5+ {[%clk 0:00:06]} 55. Ke4 {[%clk 0:01:00]}  Ra4+ {[%clk 0:00:06]} 56. Kf3 {[%clk 0:01:01]}  Ke7 {[%clk 0:00:05]} 57. Rxg2 {[%clk 0:01:00]}  d5 {[%clk 0:00:05]} 58. Rg5 {[%clk 0:01:01]}  Ke6 {[%clk 0:00:05]} 59. Re5+ {[%clk 0:01:01]}  Kd6 {[%clk 0:00:05]} 60. Re1 {[%clk 0:01:02]}  Ra5 {[%clk 0:00:03]} 61. Bg3 {[%clk 0:01:02]}  Kd7 {[%clk 0:00:02]} 62. f5 {[%clk 0:01:03]}  Ra6 {[%clk 0:00:02]} 63. Kg4 {[%clk 0:01:03]}  d4 {[%clk 0:00:02]} 64. Rd1 {[%clk 0:01:03]}  Ra4 {[%clk 0:00:02]} 65. Be5 {[%clk 0:01:02]}  d3+ {[%clk 0:00:02]} 66. Kg5 {[%clk 0:01:03]}  Ra3 {[%clk 0:00:02]} 67. Kf6 {[%clk 0:01:03]}  Ke8 {[%clk 0:00:02]} 68. Ke6 {[%clk 0:01:03]}  Kf8 {[%clk 0:00:00]} 69. Bd6+ {[%clk 0:01:04]} 1-0

[Event "December 12 Late 2023"]
[Site "https://www.chess.com"]
[Date "2023.12.12"]
[Round "3"]
[White "Sherman, Raem"]
[Black "kleong12"]
[Result "1-0"]
[Board "110"]
[TimeControl "180+1"]
[WhiteFideId "2822288"]
[WhiteElo "2520"]
[BlackElo "2153"]
[WhiteTeam "ISR"]
[WhiteClock "0:01:53"]
[BlackClock "0:00:00"]

1. Nf3 {[%clk 0:03:00]}  d5 {[%clk 0:02:58]} 2. b3 {[%clk 0:03:01]}  Nf6 {[%clk 0:02:54]} 3. Bb2 {[%clk 0:03:00]}  Bf5 {[%clk 0:02:53]} 4. e3 {[%clk 0:03:00]}  e6 {[%clk 0:02:53]} 5. g3 {[%clk 0:02:58]}  Be7 {[%clk 0:02:50]} 6. Bg2 {[%clk 0:02:58]}  O-O {[%clk 0:02:48]} 7. O-O {[%clk 0:02:59]}  h6 {[%clk 0:02:48]} 8. d4 {[%clk 0:02:59]}  Nbd7 {[%clk 0:02:46]} 9. Nbd2 {[%clk 0:02:58]}  c6 {[%clk 0:02:43]} 10. c4 {[%clk 0:02:58]}  a5 {[%clk 0:02:43]} 11. a4 {[%clk 0:02:57]}  Re8 {[%clk 0:02:41]} 12. Rc1 {[%clk 0:02:56]}  Ne4 {[%clk 0:02:41]} 13. Nxe4 {[%clk 0:02:48]}  Bxe4 {[%clk 0:02:41]} 14. Nd2 {[%clk 0:02:48]}  Bxg2 {[%clk 0:02:40]} 15. Kxg2 {[%clk 0:02:49]}  Nf6 {[%clk 0:02:39]} 16. c5 {[%clk 0:02:47]}  Nd7 {[%clk 0:02:27]} 17. f4 {[%clk 0:02:46]}  f5 {[%clk 0:02:24]} 18. Nf3 {[%clk 0:02:45]}  Kh7 {[%clk 0:02:15]} 19. Bc3 {[%clk 0:02:42]}  Nf6 {[%clk 0:02:04]} 20. Rf2 {[%clk 0:02:35]}  Ne4 {[%clk 0:02:04]} 21. Rb2 {[%clk 0:02:34]}  b5 {[%clk 0:01:52]} 22. Ne5 {[%clk 0:02:27]}  b4 {[%clk 0:01:41]} 23. Qh5 {[%clk 0:02:18]}  bxc3 {[%clk 0:00:57]} 24. Qg6+ {[%clk 0:02:15]}  Kh8 {[%clk 0:00:30]} 25. Nf7+ {[%clk 0:02:06]}  Kg8 {[%clk 0:00:29]} 26. Nxh6+ {[%clk 0:02:07]}  Kh8 {[%clk 0:00:29]} 27. Nf7+ {[%clk 0:01:55]}  Kg8 {[%clk 0:00:29]} 28. Nxd8 {[%clk 0:01:56]}  cxb2 {[%clk 0:00:27]} 29. Qxe6+ {[%clk 0:01:56]}  Kh7 {[%clk 0:00:12]} 30. Qxf5+ {[%clk 0:01:55]}  Kg8 {[%clk 0:00:09]} 31. Qf7+ {[%clk 0:01:52]}  Kh7 {[%clk 0:00:00]} 32. Qh5+ {[%clk 0:01:53]} 1-0